bitfinex/quotes_ETHUSD_20250220
["timestamp","ask_amount","ask_price","bid_price","bid_amount"]
[1740044855509,4.33081562,2732.4,2731.9,3.66045]
[1740044855685,4.33081562,2732.4,2732.0,0.8119]
[1740044856094,7.99061562,2732.4,2732.0,0.8119]
[1740044856410,3.65993,2732.3,2732.0,0.8119]
[1740044857139,3.66756,2732.2,2731.8,4.0722]
[1740044858736,0.0075,2732.2,2731.8,4.0722]
[1740044859014,0.0075,2732.2,2731.8,5.28643013]
[1740044862909,0.0075,2732.2,2731.8,8.94700013]
[1740044881583,3.66762,2732.2,2731.8,5.28643013]
[1740044881735,3.66762,2732.2,2731.8,4.0722]
[1740044882174,0.0075,2732.2,2731.8,7.73277]
[1740044883073,3.66762,2732.2,2731.8,3.263]
[1740044883262,3.66762,2732.2,2731.8,6.92358]
[1740044883971,0.0075,2732.2,2731.8,6.92358]
[1740044884275,3.66762,2732.2,2731.8,3.0]
[1740044884584,0.774,2731.7,2731.6,0.19109013]
[1740044884875,4.44222,2731.7,2731.6,0.19109013]
[1740044885574,0.7815,2731.7,2731.6,0.19109013]
[1740044885779,0.774,2731.9,2731.6,0.19109013]
[1740044886084,4.43446,2731.9,2731.6,0.19109013]
[1740044889479,0.774,2731.9,2731.6,0.81454982]
[1740044889857,4.43446,2731.9,2731.6,0.81454982]
[1740044890093,4.43446,2731.9,2731.6,0.19109013]
[1740044890271,0.774,2731.9,2731.6,0.19109013]
[1740044890674,4.33081562,2731.9,2731.6,0.19109013]
[1740044891157,7.99126562,2731.9,2731.6,0.19109013]
[1740044891999,4.33081562,2731.9,2731.6,0.19109013]
[1740044892999,7.99129562,2731.9,2731.6,0.19109013]
[1740044893158,11.65186562,2731.9,2731.6,0.19109013]
[1740044893359,3.66059,2731.8,2731.6,0.19109013]
[1740044893605,3.66059,2731.8,2731.6,0.45309013]
[1740044894220,3.66072,2731.7,2731.6,0.19109013]
[1740044894507,4.48342,2731.7,2731.6,0.19109013]
[1740044896694,8.81423562,2731.7,2731.6,0.19109013]
[1740044900791,7.99903562,2731.7,2731.6,0.19109013]
[1740044906341,4.33831562,2731.7,2731.6,0.19109013]
[1740044908295,4.33081562,2731.7,2731.6,0.19109013]
[1740044913844,4.33081562,2731.7,2731.6,0.68879684]
[1740044914030,4.33081562,2731.7,2731.6,5.18184684]
[1740044914233,4.33081562,2731.7,2731.6,8.18184684]
[1740044914436,4.33081562,2732.3,2732.1,3.66006]
[1740044914731,3.6594,2732.7,2732.2,3.92102]
[1740044914732,4.33081562,2732.6,2732.2,3.92102]
[1740044914932,0.0075,2732.5,2732.2,1.23631454]
[1740044915307,0.0075,2732.5,2732.2,0.261]
[1740044917647,3.66715,2732.5,2732.2,0.261]
[1740044917807,3.65979,2732.4,2732.2,0.261]
[1740044918139,0.0075,2732.5,2732.2,0.261]
[1740044919956,0.0075,2732.5,2732.2,0.97655287]
[1740044922468,3.66715,2732.5,2732.2,0.97655287]
[1740044922647,0.0075,2732.5,2732.2,0.97655287]
[1740044925032,3.66717,2732.5,2732.2,0.97655287]
[1740044928569,0.0075,2732.5,2732.3,0.802]
[1740044929732,4.33081562,2732.6,2732.3,0.802]
[1740044930031,7.99033562,2732.6,2732.3,0.802]
[1740044940744,3.65965,2732.5,2732.3,0.802]
[1740044940939,4.48165,2732.5,2732.2,0.97655287]
[1740044942477,1.34719535,2732.4,2732.0,0.19107383]
[1740044942675,4.49588,2732.1,2732.0,0.19107383]
[1740044942913,8.82669562,2732.1,2732.0,0.19107383]
[1740044944550,5.16651562,2732.1,2732.0,0.19107383]
[1740044944751,4.33831562,2732.1,2732.0,0.19107383]
[1740044945104,7.99849562,2732.1,2732.0,0.19107383]
[1740044950455,4.33831562,2732.1,2732.0,0.19107383]
[1740044952402,4.33081562,2732.1,2732.0,0.19107383]
[1740044953380,7.99099562,2732.1,2732.0,0.19107383]
[1740044959814,4.33081562,2732.1,2732.0,0.19107383]
[1740044963533,4.33081562,2732.1,2732.0,5.03915421]
[1740044963729,7.99813562,2732.4,2732.0,1.37883421]
[1740044964601,7.99816562,2732.4,2732.0,1.37883421]
[1740044968218,7.99810562,2732.4,2732.0,1.37883421]
[1740044969418,7.99810562,2732.4,2732.1,0.73075328]
[1740044970914,4.33831562,2732.4,2732.2,3.66005]
[1740044971123,4.33831562,2732.4,2732.1,0.73075328]
[1740044971896,7.99822562,2732.4,2732.1,0.73075328]
[1740044972215,7.99811562,2732.4,2732.1,0.73075328]
[1740044974622,3.65993,2732.3,2732.0,1.37883421]
[1740044975428,11.65800562,2732.4,2732.0,1.37883421]
[1740044976130,7.99811562,2732.4,2732.0,1.37883421]
[1740044976289,11.65800562,2732.4,2732.0,1.37883421]
[1740044977253,7.99811562,2732.4,2732.0,1.37883421]
[1740044977551,11.65799562,2732.4,2732.0,1.37883421]
[1740044978053,11.65799562,2732.4,2732.0,2.10168955]
[1740044978459,3.65998,2732.3,2732.0,2.10168955]
[1740044978762,3.65998,2732.3,2732.0,0.91392917]
[1740044979057,0.0075,2732.2,2732.0,0.19107383]
[1740044979261,4.47368,2732.1,2732.0,0.45007383]
[1740044980060,8.81339562,2732.1,2732.0,0.19107383]
[1740044980360,8.81339562,2732.1,2731.6,8.225]
[1740044980361,4.48312,2731.7,2731.6,8.225]
[1740044980523,10.15363097,2731.7,2731.6,8.225]
[1740044985125,3.66835,2731.6,2731.5,0.324567]
[1740044985761,7.99916562,2731.6,2731.5,0.324567]
[1740044995069,8.76746562,2731.6,2731.5,0.324567]
[1740044995369,9.87381998,2731.6,2731.5,0.324567]
[1740045000568,10.42381998,2731.6,2731.5,0.324567]
[1740045003970,9.87381998,2731.6,2731.5,0.324567]
[1740045004478,10.42381998,2731.6,2731.5,0.324567]
[1740045005142,9.87381998,2731.6,2731.5,0.324567]
[1740045005342,11.21351533,2731.6,2731.5,0.324567]
[1740045007653,10.44521533,2731.6,2731.5,0.324567]
[1740045011697,7.99916562,2731.6,2731.5,0.324567]
[1740045012772,4.33831562,2731.6,2731.5,0.324567]
[1740045013072,7.99916562,2731.6,2731.5,0.324567]
[1740045013303,9.33886097,2731.6,2731.5,0.324567]
[1740045016514,7.99916562,2731.6,2731.5,0.324567]
[1740045016886,9.16515418,2731.6,2731.5,0.324567]
[1740045017068,9.71515418,2731.6,2731.5,0.324567]
[1740045027514,5.38433856,2731.6,2731.5,0.324567]
[1740045028179,6.19063856,2731.6,2731.5,0.324567]
[1740045032105,6.46731306,2731.6,2731.5,0.324567]
[1740045034937,6.72403391,2731.6,2731.5,0.324567]
[1740045037414,5.00804535,2731.6,2731.5,0.324567]
[1740045037611,3.66835,2731.6,2731.5,0.324567]
[1740045039262,3.66835,2731.6,2731.5,1.126567]
[1740045051075,3.66835,2731.6,2731.5,0.324567]
[1740045051076,5.00804535,2731.6,2731.5,0.324567]
[1740045053898,6.33084535,2731.6,2731.5,0.324567]
[1740045054200,10.84322958,2731.6,2731.5,1.55e-06]
[1740045054567,11.04322958,2731.6,2731.5,1.55e-06]
[1740045055296,10.54000189,2731.6,2731.5,1.55e-06]
[1740045055700,10.34000189,2731.6,2731.5,1.55e-06]
[1740045056132,10.54000189,2731.6,2731.5,1.55e-06]
[1740045056330,10.34000189,2731.6,2731.5,1.55e-06]
[1740045056488,10.54000189,2731.6,2731.5,1.55e-06]
[1740045056825,10.34000189,2731.6,2731.5,1.55e-06]
[1740045057198,10.61080588,2731.6,2731.5,1.55e-06]
[1740045057399,10.81080588,2731.6,2731.5,1.55e-06]
[1740045058027,10.61080588,2731.6,2731.5,1.55e-06]
[1740045062687,9.01720189,2731.6,2731.5,1.55e-06]
[1740045064191,6.01720189,2731.6,2731.5,1.55e-06]
[1740045096619,9.56720189,2731.6,2731.5,1.55e-06]
[1740045096815,10.38950189,2731.6,2731.5,1.55e-06]
[1740045097927,10.38950189,2731.6,2730.8,0.7772]
[1740045097928,3.66929,2730.9,2730.8,0.7772]
[1740045098233,3.66983,2730.5,2730.4,0.7772]
[1740045098434,3.66983,2730.5,2730.4,0.96832095]
[1740045099631,3.66983,2730.5,2730.4,0.7772]
[1740045100321,3.66983,2730.5,2730.1,8.42007987]
[1740045100322,3.66273,2730.2,2730.1,9.17757987]
[1740045101155,3.67023,2730.2,2730.1,9.17757987]
[1740045101534,0.0075,2730.2,2730.1,9.17757987]
[1740045106571,3.67023,2730.2,2730.1,9.17757987]
[1740045107363,0.0075,2730.2,2730.1,9.17757987]
[1740045108635,3.67023,2730.2,2730.1,9.17757987]
[1740045113569,3.67023,2730.2,2730.1,8.42007987]
[1740045113769,4.53748354,2730.2,2730.1,8.229]
[1740045114977,3.66313,2729.9,2729.8,0.825]
[1740045116369,3.67063,2729.9,2729.8,0.825]
[1740045118170,0.0075,2729.9,2729.8,0.825]
[1740045121492,0.0075,2729.9,2729.8,5.26927]
[1740045121785,0.0075,2729.9,2729.8,1.606]
[1740045122253,3.66273,2730.2,2729.8,1.606]
[1740045122254,5.80467535,2730.7,2729.9,0.781]
[1740045122577,2.14259535,2730.7,2729.9,0.781]
[1740045122755,0.0075,2730.3,2729.9,0.781]
[1740045123287,3.67016,2730.3,2729.9,0.781]
[1740045123782,7.33288,2730.3,2729.9,0.781]
[1740045124186,3.67016,2730.3,2729.9,0.781]
[1740045127771,3.66242,2730.5,2730.2,0.7905]
[1740045128110,0.0075,2730.4,2730.2,0.7905]
[1740045128872,3.66247,2730.4,2730.2,0.7905]
[1740045130811,7.32501,2730.4,2730.2,0.7905]
[1740045131109,3.66247,2730.4,2730.2,0.7905]
[1740045131410,0.0075,2730.4,2730.2,0.7905]
[1740045131816,3.66996,2730.4,2730.2,0.7905]
[1740045132292,3.6626,2730.3,2730.2,0.7905]
[1740045135813,3.6701,2730.3,2729.9,0.8031]
[1740045136020,0.0075,2730.1,2729.9,0.8031]
[1740045137621,0.0075,2730.1,2729.8,0.825]
[1740045137622,0.0075,2730.0,2729.8,0.825]
[1740045137800,3.66313,2729.9,2729.8,0.825]
[1740045139227,3.67063,2729.9,2729.8,0.825]
[1740045140318,0.0075,2729.9,2729.8,0.825]
[1740045143119,3.67063,2729.9,2729.8,0.825]
[1740045145538,0.0075,2729.9,2729.8,0.825]
[1740045146401,3.67063,2729.9,2729.8,0.825]
[1740045155632,0.0075,2729.9,2729.8,0.825]
[1740045156301,3.67063,2729.9,2729.8,0.825]
[1740045156495,0.0075,2729.9,2729.8,0.825]
[1740045156712,3.67063,2729.9,2729.8,0.825]
[1740045157312,0.0075,2729.9,2729.8,0.825]
[1740045157518,0.0075,2729.9,2729.8,1.6446]
[1740045158538,3.66248,2730.4,2729.9,4.4827]
[1740045158746,3.66248,2730.4,2730.0,0.8196]
[1740045159038,0.0075,2730.4,2730.0,0.8196]
[1740045159335,3.6626,2730.3,2730.0,0.8196]
[1740045159536,0.0075,2730.2,2730.0,0.8196]
[1740045159708,0.0075,2730.2,2730.0,2.06039199]
[1740045159907,3.66229,2730.6,2730.1,0.7644]
[1740045160144,0.0075,2730.5,2730.1,0.7644]
[1740045161440,3.66985,2730.5,2730.1,0.7644]
[1740045165728,0.0075,2730.5,2730.1,0.7644]
[1740045165929,3.66255,2730.4,2730.1,0.7644]
[1740045166123,3.67023,2730.2,2730.1,0.7644]
[1740045166324,3.67043,2730.1,2729.8,1.01590149]
[1740045167430,3.663,2730.0,2729.8,1.01590149]
[1740045167918,1.84066988,2730.4,2729.8,1.01590149]
[1740045167919,3.66255,2730.4,2729.9,0.8184]
[1740045168268,3.66257,2730.4,2729.9,4.48144]
[1740045168429,0.0075,2730.3,2729.9,4.48144]
[1740045171271,3.66257,2730.4,2729.9,0.8184]
[1740045171272,0.0075,2730.0,2729.9,0.8184]
[1740045172523,0.0075,2730.2,2729.9,4.48153]
[1740045172765,0.0075,2730.2,2729.9,0.8184]
[1740045173857,0.0075,2730.3,2729.9,0.8184]
[1740045174219,0.0075,2730.3,2729.9,4.48153]
[1740045174459,3.6701,2730.3,2729.9,0.8184]
[1740045187272,0.0075,2730.3,2729.9,0.8184]
[1740045191345,3.67011,2730.3,2729.9,0.8184]
[1740045192478,0.0075,2730.1,2729.9,0.8184]
[1740045195486,3.67038,2730.1,2729.8,1.27590149]
[1740045195664,3.67038,2730.1,2729.8,1.01590149]
[1740045195868,0.0075,2729.9,2729.8,1.01590149]
[1740045197093,0.0075,2730.0,2729.8,1.01590149]
[1740045197266,3.6705,2730.0,2729.8,1.01590149]
[1740045198786,3.67063,2729.9,2729.8,1.01590149]
[1740045198992,4.48223,2729.9,2729.8,1.01590149]
[1740045200789,4.48223,2729.9,2729.8,0.825]
[1740045202305,0.0075,2729.9,2729.8,0.825]
[1740045202511,3.67063,2729.9,2729.8,0.825]
[1740045204985,0.0075,2729.9,2729.8,0.825]
[1740045205190,3.67063,2729.9,2729.8,0.825]
[1740045206413,4.037693,2729.9,2729.8,0.825]
[1740045212488,3.67063,2729.9,2729.8,0.825]
[1740045224732,0.0075,2729.9,2729.8,0.825]
[1740045230032,0.0075,2729.9,2729.8,4.48827]
[1740045230715,0.0075,2729.9,2729.8,0.825]
[1740045232043,3.66274,2730.2,2729.8,0.825]
[1740045232637,0.0075,2730.1,2729.8,0.825]
[1740045235421,0.0075,2730.3,2729.8,0.825]
[1740045235724,3.67011,2730.3,2729.8,4.48825]
[1740045236645,0.0075,2730.3,2729.8,0.825]
[1740045236818,3.67017,2730.3,2729.8,4.48825]
[1740045237348,0.8124,2731.1,2730.0,4.48119]
[1740045237515,0.18027171,2731.2,2730.0,4.48119]
[1740045237516,3.66241,2730.5,2730.0,4.48119]
[1740045237717,3.66997,2730.4,2730.0,0.8183]
[1740045238354,3.66997,2730.4,2730.0,4.48127]
[1740045238916,3.66997,2730.4,2730.0,0.8183]
[1740045241329,0.0075,2730.2,2730.0,0.8183]
[1740045242831,0.0075,2730.2,2730.0,1.5462037]
[1740045243232,0.0075,2730.2,2730.0,5.2091237]
[1740045243730,0.0075,2730.2,2730.0,1.5462037]
[1740045246567,0.0075,2730.2,2730.0,5.2091937]
[1740045247277,5.2475,2730.2,2730.0,5.2091937]
[1740045250647,5.2475,2730.2,2730.0,8.8721137]
[1740045250648,5.24,2730.2,2730.0,8.8721137]
[1740045250966,5.24,2730.2,2730.0,5.2091237]
[1740045253271,5.24,2730.2,2730.1,3.66286]
[1740045255371,5.2475,2730.2,2730.1,3.66286]
[1740045257776,5.24,2730.2,2730.1,3.66286]
[1740045261150,5.24,2730.2,2730.0,3.04121261]
[1740045261369,5.24,2730.2,2730.1,3.66286]
[1740045261978,0.0075,2730.3,2730.1,3.66286]
[1740045263541,0.0075,2730.3,2730.1,4.69958026]
[1740045264079,0.0075,2730.3,2730.1,3.66286]
[1740045264647,0.0075,2730.3,2730.0,1.8062037]
[1740045264946,0.0075,2730.3,2730.0,5.4690937]
[1740045265374,0.0075,2730.3,2730.1,3.66286]
[1740045273307,0.0075,2730.3,2730.0,5.4691037]
[1740045293135,0.0075,2730.3,2730.1,3.66283]
[1740045293429,0.0075,2730.3,2730.0,9.1320237]
[1740045293987,0.0075,2730.3,2730.0,5.4691037]
[1740045296128,0.0075,2730.3,2730.0,6.64525449]
[1740045296335,0.0075,2730.3,2730.1,3.66285]
[1740045296641,0.0075,2730.3,2730.1,3.66286]
[1740045297716,0.0075,2730.3,2730.0,6.64525449]
[1740045297717,5.24,2730.4,2730.3,3.6626]
[1740045298023,5.24,2730.4,2730.3,4.4578]
[1740045298212,5.24,2730.4,2730.3,5.40382254]
[1740045298892,0.0075,2730.8,2730.5,3.6623]
[1740045299395,0.0075,2730.8,2730.4,1.33969535]
[1740045299602,5.24,2730.9,2730.6,1.33969535]
[1740045299800,6.0081,2731.1,2730.7,4.47059]
[1740045300013,6.0081,2731.1,2730.7,8.71358853]
[1740045300215,6.0081,2731.1,2730.8,3.66191]
[1740045300413,5.24,2731.1,2730.8,3.66191]
[1740045301227,5.24,2731.1,2730.7,5.77356298]
[1740045301727,5.24,2731.1,2730.7,9.43555298]
[1740045301957,5.24,2731.1,2730.8,4.99843483]
[1740045303718,0.0075,2731.1,2730.8,4.99843483]
[1740045304216,0.0075,2731.1,2730.8,1.33652483]
[1740045305053,0.0075,2731.1,2730.8,4.99837483]
[1740045310727,0.0075,2731.1,2730.8,1.33652483]
[1740045311364,3.66905,2731.1,2730.8,1.33652483]
[1740045311753,3.66905,2731.1,2730.8,0.259]
[1740045312474,0.0075,2731.1,2730.8,0.259]
[1740045312875,0.0075,2730.6,2730.2,4.43672]
[1740045313063,0.0075,2730.6,2730.5,0.259]
[1740045313369,3.66969,2730.6,2730.5,0.259]
[1740045313772,5.00938535,2730.6,2730.4,0.73311868]
[1740045313959,0.758,2730.5,2730.4,0.73311868]
[1740045314481,4.42033,2730.5,2730.4,0.73311868]
[1740045315206,0.758,2730.5,2730.4,0.73311868]
[1740045315354,0.7623,2730.8,2730.4,1.33969535]
[1740045315554,5.24,2730.8,2730.4,5.00215535]
[1740045315794,5.24,2730.8,2730.6,4.49022]
[1740045316252,5.24,2730.8,2730.7,3.66206]
[1740045316662,5.24,2730.8,2730.6,0.8281]
[1740045316865,5.24,2730.8,2730.7,0.449031]
[1740045317602,0.0075,2730.7,2730.4,1.53099155]
[1740045317782,0.0075,2730.7,2730.5,0.259]
[1740045319097,3.66963,2730.7,2730.5,0.259]
[1740045320399,0.0075,2730.7,2730.5,0.259]
[1740045320859,3.66965,2730.7,2730.5,0.259]
[1740045321262,0.0075,2730.7,2730.5,0.259]
[1740045321581,5.2475,2730.7,2730.5,0.259]
[1740045323404,8.90958,2730.7,2730.5,0.259]
[1740045327608,8.90958,2730.7,2730.3,0.73588087]
[1740045327812,0.0075,2730.3,2730.2,0.259]
[1740045328014,5.2475,2730.3,2730.2,0.259]
[1740045328317,5.2475,2730.3,2730.2,0.9884001]
[1740045331118,5.2475,2730.3,2730.2,0.259]
[1740045332814,5.2475,2730.3,2730.2,3.92173]
[1740045333014,5.2475,2730.3,2730.2,0.259]
[1740045336518,5.2475,2730.3,2730.2,3.92173]
[1740045336721,5.24,2730.3,2730.2,4.85202531]
[1740045339226,0.0075,2730.7,2730.2,5.64682531]
[1740045339521,0.0075,2730.7,2730.3,3.66252]
[1740045341895,0.0075,2730.7,2730.4,3.66246]
[1740045343827,0.0075,2730.7,2730.2,5.64682531]
[1740045343828,0.0075,2730.7,2730.2,5.64673531]
[1740045344118,0.0075,2730.7,2730.2,7.5843]
[1740045344119,3.66956,2730.7,2730.2,7.5843]
[1740045344325,3.66956,2730.7,2730.2,3.92164]
[1740045344882,3.66956,2730.7,2730.2,7.58431]
[1740045345319,8.90956,2730.7,2730.3,3.66259]
[1740045349235,8.90956,2730.7,2730.2,3.92164]
[1740045350642,0.0075,2730.5,2730.2,3.92164]
[1740045350830,0.0075,2730.5,2730.2,4.84996931]
[1740045354315,0.0075,2730.5,2730.2,1.18732931]
[1740045354514,0.0075,2730.5,2730.2,0.259]
[1740045354956,3.66984,2730.5,2730.2,0.259]
[1740045355170,3.66984,2730.5,2730.1,0.72529204]
[1740045355171,0.0075,2730.3,2730.1,0.72529204]
[1740045355460,0.0075,2730.3,2730.1,0.259]
[1740045355751,0.0075,2730.1,2729.8,0.825]
[1740045356158,0.0075,2729.9,2729.8,0.825]
[1740045359659,3.67063,2729.9,2729.8,0.825]
[1740045360229,9.724449,2729.9,2729.8,0.825]
[1740045362361,6.061319,2729.9,2729.8,0.825]
[1740045362665,9.724449,2729.9,2729.8,0.825]
[1740045363453,6.061319,2729.9,2729.8,0.825]
[1740045364457,5.2475,2729.9,2729.8,0.825]
[1740045372491,5.2475,2729.9,2729.8,4.48827]
[1740045372999,5.24,2729.9,2729.8,4.48827]
[1740045373305,5.24,2729.9,2729.8,5.26897]
[1740045373786,5.24,2729.9,2729.8,6.60866535]
[1740045373994,5.2475,2729.9,2729.8,0.825]
[1740045374568,5.2475,2729.9,2729.8,4.48827]
[1740045379126,5.2475,2730.2,2730.1,3.66286]
[1740045379322,5.24,2730.2,2730.1,4.69196]
[1740045381940,5.24,2730.2,2730.1,5.41075481]
[1740045382148,5.24,2730.2,2730.1,6.45209783]
[1740045382658,5.24,2730.2,2730.1,2.01913783]
[1740045382938,5.2475,2730.2,2730.1,0.259]
[1740045391167,5.2475,2730.2,2730.1,3.92186]
[1740045393146,5.2475,2730.2,2730.1,0.259]
[1740045401392,5.2475,2730.2,2730.1,3.92186]
[1740045406886,5.2475,2730.2,2730.1,0.259]
[1740045409919,5.2475,2730.2,2730.0,4.38486598]
[1740045410215,5.2475,2730.2,2730.0,4.64386598]
[1740045414430,5.2475,2730.2,2730.1,3.66286]
[1740045417532,5.2475,2730.2,2730.0,4.64387598]
[1740045421499,0.8005,2730.1,2730.0,0.72187598]
[1740045423744,5.24,2730.2,2730.0,0.72187598]
[1740045423900,5.24,2730.2,2730.1,3.66286]
[1740045424106,5.24,2730.2,2730.0,8.04787598]
[1740045424645,5.24,2730.2,2730.0,4.38487598]
[1740045425443,0.0075,2730.2,2730.0,4.38487598]
[1740045433666,0.0075,2730.2,2730.0,0.72187598]
[1740045434138,0.8267,2730.2,2730.0,0.72187598]
[1740045435666,0.8267,2730.2,2730.0,4.38486598]
[1740045440343,0.8267,2730.2,2730.0,0.72187598]
[1740045447490,5.462349,2730.2,2729.9,0.259]
[1740045448679,5.462349,2730.2,2729.8,1.01602546]
[1740045448988,0.0075,2730.0,2729.8,1.27502546]
[1740045449196,5.2475,2730.0,2729.8,1.27502546]
[1740045450693,5.2475,2730.0,2729.9,0.73657798]
[1740045452898,6.3177519,2730.0,2729.8,0.825]
[1740045454265,6.3177519,2730.0,2729.8,1.54260821]
[1740045455400,5.2475,2730.0,2729.8,1.54260821]
[1740045471999,8.9105,2730.0,2729.8,1.54260821]
[1740045473724,5.2475,2730.0,2729.8,1.54260821]
[1740045487424,8.9105,2730.0,2729.8,1.54260821]
[1740045495427,0.77,2729.9,2729.8,1.54260821]
[1740045495631,4.43313,2729.9,2729.8,0.825]
[1740045495979,5.766743,2729.9,2729.8,0.825]
[1740045496747,11.006743,2729.9,2729.8,0.825]
[1740045504842,11.556743,2729.9,2729.8,0.825]
[1740045514777,10.244243,2729.9,2729.8,0.825]
[1740045530266,11.042743,2729.9,2729.8,0.825]
[1740045530740,11.592743,2729.9,2729.8,0.825]
[1740045548589,10.794243,2729.9,2729.8,0.825]
[1740045552798,5.7975,2729.9,2729.8,0.825]
[1740045553087,9.46063,2729.9,2729.8,1.5907]
[1740045557560,5.7975,2729.9,2729.8,1.5907]
[1740045557760,9.46063,2729.9,2729.8,1.5907]
[1740045576819,9.46063,2729.9,2729.8,0.825]
[1740045592423,5.2475,2729.9,2729.8,1.6095]
[1740045593465,5.24,2729.9,2729.8,5.80960282]
[1740045597029,5.24,2729.9,2729.8,6.52982055]
[1740045597444,5.2475,2729.9,2729.8,6.78882055]
[1740045601569,5.2475,2729.9,2729.8,3.12555055]
[1740045602179,5.2475,2729.9,2729.8,6.78882055]
[1740045603573,5.24,2730.3,2729.8,6.00432055]
[1740045603867,5.24,2730.3,2730.0,0.7973]
[1740045604071,0.0075,2730.2,2730.0,3.66293]
[1740045604224,0.0075,2730.2,2730.1,5.77915535]
[1740045604651,0.0075,2730.2,2730.1,4.43946]
[1740045604867,0.0075,2730.2,2730.1,0.7766]
[1740045605161,0.0075,2730.2,2730.1,1.43164973]
[1740045608453,0.0075,2730.3,2730.1,1.43164973]
[1740045610155,1.33969535,2730.2,2729.9,0.77121194]
[1740045610355,1.33969535,2730.2,2729.8,0.825]
[1740045610356,0.0075,2729.9,2729.8,0.825]
[1740045610561,3.67063,2729.9,2729.8,0.825]
[1740045610939,0.0075,2729.9,2729.8,0.825]
[1740045611257,5.24,2730.1,2729.8,0.825]
[1740045611442,5.24,2730.1,2729.9,0.7524]
[1740045611644,0.0075,2730.0,2729.9,0.7524]
[1740045612470,4.5627,2730.0,2729.9,0.7524]
[1740045613974,4.5627,2730.0,2729.9,4.41553]
[1740045614471,4.5627,2730.0,2729.9,0.7524]
[1740045614768,4.5627,2730.0,2729.9,1.41996235]
[1740045616241,4.5627,2730.0,2729.9,5.08309235]
[1740045619169,4.5552,2730.0,2729.9,5.08309235]
[1740045619548,4.5552,2730.0,2729.9,5.83438558]
[1740045622543,4.5552,2730.0,2729.9,7.17408093]
[1740045628095,4.5552,2730.0,2729.9,10.17408093]
[1740045643607,0.7952,2731.0,2730.7,3.66198]
[1740045643803,0.7952,2731.0,2730.8,3.66191]
[1740045644014,0.0075,2730.9,2730.8,3.66191]
[1740045646539,0.0075,2731.0,2730.8,3.66191]
[1740045648039,0.0075,2731.0,2730.8,4.40277842]
[1740045648219,5.24,2731.1,2730.9,3.66171]
[1740045648738,5.24,2731.1,2730.9,7.32342]
[1740045648952,5.24,2731.1,2731.0,3.66166]
[1740045653824,0.0075,2731.3,2731.0,3.66166]
[1740045657356,0.0075,2731.3,2730.9,3.66171]
[1740045657538,0.0075,2731.3,2731.0,0.60570743]
[1740045658729,0.0075,2731.3,2731.1,0.259]
[1740045665170,0.0075,2731.3,2731.0,0.60570743]
[1740045665371,0.7582,2731.2,2731.1,0.259]
[1740045665667,4.42719,2731.2,2731.1,0.259]
[1740045666541,0.7657,2731.2,2731.1,0.259]
[1740045666747,0.0075,2731.2,2731.1,0.259]
[1740045666974,0.7934,2731.4,2731.1,4.312528]
[1740045667959,0.0075,2731.3,2731.1,0.651078]
[1740045668634,0.0075,2731.4,2731.1,0.651078]
[1740045671043,0.7533,2731.3,2731.1,0.651078]
[1740045676579,0.7533,2731.3,2731.1,0.259]
[1740045677679,0.0075,2731.4,2731.1,3.92045]
[1740045678679,0.0075,2731.4,2731.2,3.66138]
[1740045679376,0.0075,2731.4,2731.3,3.66126]
[1740045683766,5.62382793,2731.5,2731.4,3.66112]
[1740045683972,5.62382793,2731.5,2731.4,4.759495]
[1740045686096,0.38382793,2731.5,2731.4,4.759495]
[1740045686276,0.38382793,2731.5,2731.4,5.526395]
[1740045689798,7.93e-06,2731.5,2731.4,8.526395]
[1740045694216,7.93e-06,2731.5,2731.4,8.626395]
[1740045694405,7.93e-06,2731.5,2731.4,14.2271488]
[1740045694898,7.93e-06,2731.5,2731.4,14.7771488]
[1740045695792,7.93e-06,2731.5,2731.4,14.8440951]
[1740045696106,7.93e-06,2731.5,2731.4,16.18379045]
[1740045698213,5.2475,2732.9,2732.8,3.65925]
[1740045698420,0.0075,2732.9,2732.8,3.91825]
[1740045702058,0.7934,2733.0,2732.8,3.91825]
[1740045702229,0.7934,2733.0,2732.9,3.65911]
[1740045702391,0.0075,2733.1,2732.8,4.676012]
[1740045702597,0.0075,2733.1,2733.0,3.65897]
[1740045703425,0.0075,2733.2,2733.1,3.65883]
[1740045705829,0.0075,2733.2,2733.1,4.39061]
[1740045706739,0.0075,2733.4,2733.3,3.65856]
[1740045712937,5.9926,2733.7,2733.3,3.65856]
[1740045712938,5.9926,2733.7,2733.6,3.65817]
[1740045713241,5.9926,2733.7,2733.6,3.91717]
[1740045713242,0.7601,2733.7,2733.6,3.91717]
[1740045713848,0.0075,2733.7,2733.6,3.91717]
[1740045714148,0.0075,2733.7,2733.6,4.674717]
[1740045716318,0.818,2733.9,2733.8,3.65791]
[1740045716643,0.8255,2733.9,2733.8,3.65791]
[1740045717546,0.0075,2733.9,2733.8,3.65791]
[1740045719447,0.8034,2733.8,2733.6,0.74158744]
[1740045719647,4.46131,2733.8,2733.4,0.259]
[1740045719847,0.0075,2733.6,2733.4,0.259]
[1740045720150,0.0075,2733.4,2733.3,1.00772695]
[1740045720837,0.0075,2733.4,2733.3,0.72786744]
[1740045721270,0.8199,2733.3,2732.9,3.65908]
[1740045721549,1.34609769,2733.4,2732.9,0.259]
[1740045721550,0.7591,2733.1,2732.9,0.259]
[1740045721847,0.7591,2733.1,2732.7,3.65929]
[1740045721848,0.0075,2732.8,2732.7,0.71612264]
[1740045722069,0.0075,2732.8,2732.7,0.97512264]
[1740045722250,0.0075,2732.6,2732.4,0.259]
[1740045722955,0.7817,2732.5,2732.4,0.99065548]
[1740045723155,6.0217,2732.5,2732.4,0.99065548]
[1740045723953,6.0217,2732.5,2732.4,0.259]
[1740045728667,6.0217,2732.5,2732.4,3.91878]